Cogmind - Beta 13 @@@ ROGUE MODE // 2024.04.24 @ 00:35:18 Player: Exceptionally Mediocre Result: Destroyed by P-70 Sage with Tesla Rifle Performance ------------- Evolutions (5) 2500 Regions Visited (11) 2200 Robots Destroyed (162) 810 Value Destroyed (3432) 3432 Prototype IDs (20) 400 Alien Tech Used (0) 0 Bonus (390) 390 TOTAL SCORE: 9732 Bonus ------- High Alert Combat Kills 11 Follower Combat Kills 379 Cogmind --------- Core Integrity 0/1000 Matter 208/300 Energy 252/365 System Corruption 7% Temperature Cool (0) Movement Flying (40) Location -5/Factory Parts ------- > --- POWER (2) -------- Neutrino Core Micro Fission Core > --- PROPULSION (5) --- Faulty Biomechanical Wings Nuclear Pulse Array > --- UTILITY (8) ------ Advanced Weight Redist. System Advanced Signal Interpreter Hacking Suite Hacking Suite Hacking Suite Improved Hacking Suite System Shield System Shield > --- WEAPON (2) ------- (None) > --- INVENTORY (5) ---- Large Storage Unit Energy Well (350) Compact Matter Pod (150) Stasis Canceller Improved Plasma Cutter Peak State ------------ > --- POWER ------------ Light Deuterium Engine Angular Momentum Engine > --- PROPULSION ------- Cooled Nuclear Pulse Thruster Cooled Nuclear Pulse Thruster Cooled Nuclear Pulse Thruster Field Propulsion Array > --- UTILITY ---------- Structural Scanner Hacking Suite Hacking Suite Improved Hacking Suite System Shield System Shield System Shield System Shield > --- WEAPON ----------- Long-range Proton Cannon Ripper > --- INVENTORY -------- Energy Well Compact Matter Pod Advanced Sensor Array Advanced ECM Suite Advanced System Restoration Module [Rating: 79] Favorites ----------- Power Ion Engine Engine Ion Engine Power Core Nuclear Core Propulsion Light Treads Treads Light Treads Hover Unit Cooled Gravmag System Flight Unit Improved Flight Unit Utility Huge Storage Unit Device Improved Terrain Scanner Storage Huge Storage Unit Processor Improved Signal Interpreter Hackware System Shield Protection Light Armor Plating Weapon Improved Light Cannon Energy Gun Heavy Particle Gun Energy Cannon Long-range Proton Cannon Ballistic Gun Improved Assault Rifle Ballistic Cannon Improved Light Cannon Launcher Missile Launcher Special Weapon Improved Plasma Cutter Impact Weapon Flail Slashing Weapon Chainsword Build | -11 -10 -10 -9 -9 -8 -7 -6 -6 -6 -6 -5 ------- Run | Yrd Mat Min Mat Sto Mat Fac Fac Was Fac Ext Fac Slots Evolved 10 | . . . 2 . 2 2 2 . . . 2 Power 1 | . . . . . . . . . . . 1 Propulsion 3 | . . . . . 2 . 1 . . . . Utility 6 | . . . 2 . . 2 1 . . . 1 Weapon . | . . . . . . . . . . . . Parts Attached 180 | 7 12 4 6 23 44 18 13 3 9 2 39 Power 20 | 1 1 . 1 1 2 4 2 . 1 . 7 Engine 15 | 1 1 . 1 1 1 4 1 . 1 . 4 Core 5 | . . . . . 1 . 1 . . . 3 Reactor . | . . . . . . . . . . . . Propulsion 68 | 2 6 2 3 6 25 6 4 2 1 . 11 Treads 42 | 2 6 2 3 5 24 . . . . . . Leg . | . . . . . . . . . . . . Wheel . | . . . . . . . . . . . . Hover 1 | . . . . . . . . . . . 1 Flight 25 | . . . . 1 1 6 4 2 1 . 10 Utility 48 | 2 1 1 1 9 8 4 4 1 5 . 12 Device 14 | 1 . . . 1 2 1 2 . 2 . 5 Storage 5 | 1 1 1 . . . 1 . . . . 1 Processor 7 | . . . . . 2 . 1 . 1 . 3 Hackware 9 | . . . . . 1 1 1 1 2 . 3 Protection 13 | . . . 1 8 3 1 . . . . . Artifact . | . . . . . . . . . . . . Weapon 44 | 2 4 1 1 7 9 4 3 . 2 2 9 Energy Gun 5 | 1 . . . . 3 . . . . 1 . Energy Cannon 1 | . . . . . . . . . . . 1 Ballistic Gun 17 | 1 3 1 1 4 4 2 1 . . . . Ballistic Cannon 2 | . 1 . . 1 . . . . . . . Launcher 2 | . . . . . . 1 . . . . 1 Special Weapon 1 | . . . . . . . . . . . 1 Impact Weapon 3 | . . . . 2 1 . . . . . . Slashing Weapon 13 | . . . . . 1 1 2 . 2 1 6 Piercing Weapon . | . . . . . . . . . . . . Special Melee Weapon . | . . . . . . . . . . . . Unidentified Prototypes 16 | . . . 1 3 4 2 . . . . 6 Parts Lost 53 | . 1 3 . 7 6 2 15 2 1 4 12 Power 6 | . . . . 1 . . 2 . . 1 2 Propulsion 19 | . . 2 . . 2 1 8 . . 1 5 Utility 15 | . . . . 4 3 . 2 2 1 . 3 Weapon 13 | . 1 1 . 2 1 1 3 . . 2 2 Highest Loss Streak 7 | . 1 3 . 2 3 1 7 2 1 3 4 To Critical Strikes . | . . . . . . . . . . . . Average Slot Usage (%) 95 | . 99 99 85 99 98 98 79 35 65 75 69 Engine 9 | . 14 14 11 10 5 6 5 . 3 5 2 Treads 24 | . 27 27 22 22 35 1 . . . . . Flight 2 | . . . . . . 28 19 1 11 9 13 Device 11 | . 14 14 11 11 9 14 13 7 8 6 3 Storage 10 | . 14 14 11 11 9 7 6 3 . . . Processor 1 | . . . . . 6 . . . 5 6 5 Hackware 3 | . . . . . 1 14 19 23 26 33 33 Protection 6 | . . . 8 21 9 7 4 . . . . Energy Gun 2 | . 8 . . . 4 . . . 3 2 . Ballistic Gun 11 | . 13 14 11 11 12 6 . . . . . Ballistic Cannon 6 | . 5 14 11 9 . . . . . . . Naked Turns . | . . . . . . . . . . . . Heaviest Build 104 | 13 52 92 99 104 100 95 32 11 12 15 23 Greatest Support 107 | 40 40 40 40 46 107 98 32 13 28 28 33 Greatest Overweight (x) 17 | . 17 2 2 2 1 1 2 3 . 3 2 Average Overweight (x) . | . . 1 2 2 . . . . . . . Largest Inventory Capacity 25 | 8 20 25 25 25 25 25 10 10 5 5 15 Average Capacity 21 | 7 18 23 25 25 25 10 10 7 5 5 5 Most Carried 25 | 5 20 24 25 25 25 25 10 10 5 5 5 Average Carried 19 | 2 15 21 24 23 24 10 9 7 4 4 4 Final Capacity 25 | 8 20 25 25 25 25 10 10 5 5 5 5 Final Carried 25 | 5 20 22 25 24 25 10 9 5 4 5 5 Class Distribution -------------------- 61% | Scavenger-Mutant 24% | Mutant 7% | Hacker-Mutant 3% | Hacker-Sprinter Dominant Class ---------------- Mutant | -10/Materials Scavenger-Mutant | -10/Mines Scavenger-Mutant | -9/Materials Scavenger-Mutant | -9/Storage Scavenger-Mutant | -8/Materials Hacker-Sprinter | -7/Factory Hacker-Mutant | -6/Factory Hacker-Mutant | -6/Waste Hacker-Mutant | -6/Factory Hacker-Mutant | -6/Extension Hacker-Mutant | -5/Factory Resources | -11 -10 -10 -9 -9 -8 -7 -6 -6 -6 -6 -5 ----------- Run | Yrd Mat Min Mat Sto Mat Fac Fac Was Fac Ext Fac Matter Collected 4193 | 297 348 436 138 933 1152 75 274 . 79 206 255 Remotely . | . . . . . . . . . . . . Salvage Created 5418 | 170 521 431 314 1372 1678 86 247 . 79 274 246 Parts 348 | 12 44 31 15 86 96 5 21 . 14 12 12 Haulers Intercepted 17 | . 2 . . 6 6 . 1 . . . 2 Recyclers Shooed 3 | . . . . . . . . . . 1 2 Parts Field Recycled . | . . . . . . . . . . . . Retrieved Matter . | . . . . . . . . . . . . Parts Self-Destructed . | . . . . . . . . . . . . Prevented . | . . . . . . . . . . . . Kills | -11 -10 -10 -9 -9 -8 -7 -6 -6 -6 -6 -5 ------- Run | Yrd Mat Min Mat Sto Mat Fac Fac Was Fac Ext Fac Combat Hostiles Destroyed 89 | . 11 15 5 27 24 4 3 . . . . Melee 3 | . . . . . . . 3 . . . . Guns 54 | . 10 4 . 15 24 1 . . . . . Cannons 29 | . 1 11 5 12 . . . . . . . AOE 3 | . . . . . . 3 . . . . . Classes Destroyed 10 | 3 6 . 1 . . . . . . . . Worker 16 | 1 . 2 1 3 5 . 1 . . . 3 Builder 13 | . 1 1 . 1 5 . 2 . 2 1 . Tunneler 6 | 3 . 2 . . 1 . . . . . . Hauler 17 | . 2 . . 6 6 . 1 . . . 2 Recycler 7 | 1 1 1 1 1 . . . . . 2 . Operator 5 | . 1 . 1 1 . . . . 1 . 1 Watcher 9 | . 2 . 1 2 3 . 1 . . . . Swarmer 32 | . 6 8 . 6 6 3 3 . . . . Grunt 34 | . 5 7 2 10 10 . . . . . . Sentry 23 | . . . 3 11 8 1 . . . . . Best Kill Streak 6 | 3 3 4 6 5 4 3 3 . 2 2 2 Combat Bots Only 5 | . 3 3 3 5 3 3 2 . . . . Max Kills in Single Turn 2 | 1 1 1 1 2 1 2 1 . 1 1 1 Gunslinging . | . . . . . . . . . . . . Exploded 2 | . . . . . . 2 . . . . . Melee 1 | . . . . . . . 1 . . . . Uniques/NPCs Destroyed . | . . . . . . . . . . . . Combat | -11 -10 -10 -9 -9 -8 -7 -6 -6 -6 -6 -5 -------- Run | Yrd Mat Min Mat Sto Mat Fac Fac Was Fac Ext Fac Hostile Shots Fired 1000 | . 69 51 29 178 175 74 167 2 10 61 184 Missed 366 | . 22 13 8 51 50 35 61 . 5 24 97 Damage Taken 8709 | . 452 396 294 1538 1818 398 1444 96 95 433 1745 Core 2412 | . 75 52 31 160 214 64 535 96 37 138 1010 Absorbed by Shields 73 | . . . . . . . . . . 73 . Redirected to Shielding 129 | . . . . . 43 23 63 . . . . Regen/Repaired (Parts) 763 | . . . . . 587 . . . 176 . . Core Remaining (%) 59 | 100 . 49 . 52 61 90 . . . 5 . Volleys Fired 408 | 9 65 55 19 110 135 14 . . . 1 . Largest 2 | 2 2 2 2 2 2 1 . . . 1 . Hottest 86 | 70 70 59 62 62 86 36 . . . 81 . Shots Fired 791 | 18 122 109 38 218 271 14 . . . 1 . Gun 600 | 18 110 54 19 115 271 12 . . . 1 . Cannon 189 | . 12 55 19 103 . . . . . . . Launcher 2 | . . . . . . 2 . . . . . Special . | . . . . . . . . . . . . Kinetic 681 | 9 77 109 38 218 218 12 . . . . . Thermal 108 | 9 45 . . . 53 . . . . 1 . Explosive 2 | . . . . . . 2 . . . . . Electromagnetic . | . . . . . . . . . . . . Robot Hit Streak 21 | 5 14 7 12 11 21 6 . . . . . Robot Miss Streak 6 | 2 6 4 3 6 3 2 . . . . . Penetration Max . | . . . . . . . . . . . . Secondary Targets 4 | . 1 . . . 3 . . . . . . Max Gunslinging Chain 1 | . 1 . . . 1 . . . . . . Shots Hit Robots 550 | 10 64 65 27 140 189 9 17 . 4 11 14 Core Hits 226 | 6 27 28 13 53 72 9 7 . 2 3 6 Critical Kills 1 | . . . . 1 . . . . . . . Critical Parts Destroyed 3 | . 1 . . . 2 . . . . . . Critical Strikes 17 | 1 5 1 3 2 3 . . . . 2 . Burn 5 | 1 3 . . . 1 . . . . . . Destroy 4 | . 1 . . 1 2 . . . . . . Blast 6 | . 1 1 3 1 . . . . . . . Sever 2 | . . . . . . . . . . 2 . Melee Attacks 114 | . . . . 3 1 11 34 . 16 15 34 Impact 4 | . . . . 3 1 . . . . . . Slashing 110 | . . . . . . 11 34 . 16 15 34 Piercing . | . . . . . . . . . . . . Sneak Attacks 19 | . . . . . . . 4 . 4 4 7 Combat Hostiles . | . . . . . . . . . . . . Follow-up Attacks 2 | . . . . . . . 2 . . . . Damage Inflicted 10872 | 128 883 1045 442 2625 3083 374 778 . 259 427 828 Guns 5747 | 128 738 337 126 1215 3083 120 . . . . . Cannons 2573 | . 145 708 316 1404 . . . . . . . Explosions 222 | . . . . . . 222 . . . . . Melee 2324 | . . . . . . 32 778 . 259 427 828 Ramming 6 | . . . . 6 . . . . . . . Kinetic 7201 | 66 558 1045 442 2619 2351 120 . . . . . Thermal 1119 | 62 325 . . . 732 . . . . . . Explosive 222 | . . . . . . 222 . . . . . Electromagnetic . | . . . . . . . . . . . . Impact . | . . . . . . . . . . . . Slashing 2324 | . . . . . . 32 778 . 259 427 828 Piercing . | . . . . . . . . . . . . Highest Corruption 6 | . . 1 . . 1 . . . . . 6 Average Corruption 1 | . . 1 . . 1 . . . . . 2 Corruption Purged 4 | . . . . . . . . . . . 4 Corruption Blocked . | . . . . . . . . . . . . Effects 28 | . . 16 . . 7 . . . . . 5 Message Errors 5 | . . 3 . . 1 . . . . . 1 Matter Fused 12 | . . 8 . . 2 . . . . . 2 Heat Flow Errors 4 | . . 2 . . 2 . . . . . . Energy Discharges 1 | . . . . . . . . . . . 1 Parts Rejected 1 | . . . . . . . . . . . 1 Data Loss (minor) 3 | . . 2 . . 1 . . . . . . Misfires 1 | . . . . . 1 . . . . . . Weapon Failures 1 | . . 1 . . . . . . . . . Overload Shots . | . . . . . . . . . . . . Overflow Damage 329 | . . 4 . 31 . . 86 . 29 49 130 Projectiles 35 | . . 4 . 31 . . . . . . . Explosions . | . . . . . . . . . . . . Melee 294 | . . . . . . . 86 . 29 49 130 Knockbacks 20 | . 3 11 1 5 . . . . . . . Impact . | . . . . . . . . . . . . Kinetic 17 | . 3 8 1 5 . . . . . . . Secondary 3 | . . 3 . . . . . . . . . Self-Inflicted Damage . | . . . . . . . . . . . . Shots . | . . . . . . . . . . . . Rammed 2 | . . . . 2 . . . . . . . Targets Rammed 2 | . . . . 2 . . . . . . . Kicked . | . . . . . . . . . . . . Crushed . | . . . . . . . . . . . . Highest Temperature 269 | 27 99 269 72 243 198 22 7 . . 25 248 Average Temperature 42 | 10 19 42 32 60 32 8 7 . . 19 127 Received Heat Transfer 2545 | . 132 180 150 486 882 108 265 . 45 78 219 Siege Activations . | . . . . . . . . . . . . Robots Corrupted . | . . . . . . . . . . . . Combat Hostiles . | . . . . . . . . . . . . Parts Fried . | . . . . . . . . . . . . Impact Corruptions . | . . . . . . . . . . . . Robots Melted . | . . . . . . . . . . . . Combat Hostiles . | . . . . . . . . . . . . Parts Melted 4 | 1 . . . . 3 . . . . . . Heat Transferred 2923 | 259 1184 . . . 1480 . . . . . . Parts Sabotaged . | . . . . . . . . . . . . Parts Stolen . | . . . . . . . . . . . . Parts Stripped . | . . . . . . . . . . . . Power Chain Reactions . | . . . . . . . . . . . . Alert | -11 -10 -10 -9 -9 -8 -7 -6 -6 -6 -6 -5 ------- Run | Yrd Mat Min Mat Sto Mat Fac Fac Was Fac Ext Fac Peak Influence 540 | 25 232 127 163 318 409 470 312 123 262 286 540 Initial 230 | . 16 7 . 18 132 158 230 98 86 66 109 Average 134 | 8 71 23 77 189 224 270 263 110 134 155 246 Maximum Alert Level 2 | . 1 . . 1 2 2 1 . 1 1 2 Low Security (%) 69 | 100 91 100 100 40 48 42 . 100 83 60 39 Level 1 29 | . 8 . . 59 49 46 100 . 16 39 46 Level 2 1 | . . . . . 2 11 . . . . 13 Level 3 . | . . . . . . . . . . . . Level 4 . | . . . . . . . . . . . . Level 5 . | . . . . . . . . . . . . High Security . | . . . . . . . . . . . . Max Security . | . . . . . . . . . . . . Squads Dispatched 35 | . 1 1 1 4 4 5 5 . 3 . 11 Investigation 16 | . . 1 . 1 3 2 3 . 1 . 5 Extermination 1 | . . . . . . . 1 . . . . Reinforcement 16 | . 1 . 1 1 1 3 1 . 2 . 6 Assault . | . . . . . . . . . . . . Garrison 2 | . . . . 2 . . . . . . . Intercept . | . . . . . . . . . . . . Searches Triggered . | . . . . . . . . . . . . Construction Impeded . | . . . . . . . . . . . . Haulers Reinforced 4 | . . . . . . . . . 1 . 3 Active Scanning Responses . | . . . . . . . . . . . . Cargo Convoy Interrupts . | . . . . . . . . . . . . Stealth | -11 -10 -10 -9 -9 -8 -7 -6 -6 -6 -6 -5 --------- Run | Yrd Mat Min Mat Sto Mat Fac Fac Was Fac Ext Fac Distress Signals 22 | . 2 1 1 1 8 1 3 . . 4 1 Communications Jammed . | . . . . . . . . . . . . Distress Signals . | . . . . . . . . . . . . Times Spotted 239 | . 22 14 7 29 42 19 20 6 11 15 54 Peak Tracking Total 23 | . 4 3 3 3 5 9 14 6 5 7 23 Tactical Retreats 24 | . 2 . . . 2 2 1 . 3 . 14 Traps | -11 -10 -10 -9 -9 -8 -7 -6 -6 -6 -6 -5 ------- Run | Yrd Mat Min Mat Sto Mat Fac Fac Was Fac Ext Fac Traps Triggered 12 | . 2 . . 2 1 . 2 . . 5 . Indirectly . | . . . . . . . . . . . . Trap Hack Attempts . | . . . . . . . . . . . . Triggered . | . . . . . . . . . . . . Disarmed . | . . . . . . . . . . . . Reprogrammed . | . . . . . . . . . . . . Reused . | . . . . . . . . . . . . Traps Extracted . | . . . . . . . . . . . . Installed . | . . . . . . . . . . . . Triggered . | . . . . . . . . . . . . Machines | -11 -10 -10 -9 -9 -8 -7 -6 -6 -6 -6 -5 ---------- Run | Yrd Mat Min Mat Sto Mat Fac Fac Was Fac Ext Fac Machines Disabled 10 | . 2 . . 3 3 2 . . . . . Max in Single Turn 2 | . 1 . . 1 1 2 . . . . . Garrison Access 2 | . . . . 1 1 . . . . . . Machines Repaired . | . . . . . . . . . . . . Machines Dismantled . | . . . . . . . . . . . . Machines Sabotaged . | . . . . . . . . . . . . Overloaded Fab Kills . | . . . . . . . . . . . . Hacking | -11 -10 -10 -9 -9 -8 -7 -6 -6 -6 -6 -5 --------- Run | Yrd Mat Min Mat Sto Mat Fac Fac Was Fac Ext Fac Machines Accessed 52 | . 1 1 . 7 10 5 4 . 8 6 10 Terminals 30 | . 1 1 . 6 7 1 2 . 3 5 4 Fabricators 4 | . . . . . . 1 . . . . 3 Repair Stations 3 | . . . . . 1 . . . 2 . . Recycling Units 9 | . . . . . 1 1 1 . 3 1 2 Scanalyzers 4 | . . . . . . 2 1 . . . 1 Garrison Access 2 | . . . . 1 1 . . . . . . Total Hacks 162 | . 2 2 . 9 38 9 13 . 28 11 50 Successful 95 | . 1 . . 6 25 7 8 . 14 5 29 Failed 66 | . 1 2 . 3 13 2 5 . 14 6 20 Catastrophic 12 | . . . . 2 . 1 1 . 3 2 3 Database Lockouts 1 | . . . . . . . . . . . 1 Manual 75 | . 2 2 . 5 19 1 7 . 13 5 21 Terminals 95 | . 2 2 . 8 24 1 8 . 15 9 26 Fabricators 9 | . . . . . . 2 . . . . 7 Repair Stations 20 | . . . . . 12 . . . 8 . . Recycling Units 15 | . . . . . 1 1 1 . 5 2 5 Scanalyzers 21 | . . . . . . 5 4 . . . 12 Garrison Access 2 | . . . . 1 1 . . . . . . Terminal Hacks 24 | . . . . 2 5 . 1 . 4 3 9 Record 4 | . . . . . . . 1 . . . 3 Part Schematic 2 | . . . . . . . . . 2 . . Robot Analysis 4 | . . . . . 2 . . . . . 2 Prototype ID Bank 1 | . . . . . 1 . . . . . . Open Door 5 | . . . . 2 . . . . . 3 . Branch Access Points 1 | . . . . . . . . . 1 . . Unreport Threat 2 | . . . . . . . . . 1 . 1 Recall Investigation 1 | . . . . . . . . . . . 1 Recall Extermination 1 | . . . . . . . . . . . 1 Hauler Manifests 3 | . . . . . 2 . . . . . 1 Fabricator Hacks 8 | . . . . . . 2 . . . . 6 Load Schematic 4 | . . . . . . 1 . . . . 3 Build 4 | . . . . . . 1 . . . . 3 Repair Station Hacks 16 | . . . . . 11 . . . 5 . . Scan Component 8 | . . . . . 6 . . . 2 . . Repair 7 | . . . . . 5 . . . 2 . . Refit 1 | . . . . . . . . . 1 . . Recycling Unit Hacks 8 | . . . . . 1 . 1 . 2 1 3 Report Inventory 1 | . . . . . . . . . . . 1 Retrieve Components 7 | . . . . . 1 . 1 . 2 1 2 Scanalyzer 15 | . . . . . . 4 4 . . . 7 Insert Component 8 | . . . . . . 2 2 . . . 4 Analyze 7 | . . . . . . 2 2 . . . 3 Garrison Access Hacks 2 | . . . . 1 1 . . . . . . Seal Access 2 | . . . . 1 1 . . . . . . Unauthorized Hacks 22 | . 1 . . 3 7 1 2 . 3 1 4 Terminals 22 | . 1 . . 3 7 1 2 . 3 1 4 Botnet 22 | . 1 . . 3 7 1 2 . 3 1 4 Fabricators . | . . . . . . . . . . . . Repair Stations . | . . . . . . . . . . . . Recycling Units . | . . . . . . . . . . . . Scanalyzers . | . . . . . . . . . . . . Garrison Access . | . . . . . . . . . . . . Data Cores Recovered . | . . . . . . . . . . . . Used . | . . . . . . . . . . . . Hacking Detections 36 | . 1 1 . 3 6 4 4 . 4 3 10 Full Trace Events 15 | . . 1 . 1 3 2 2 . 1 . 5 Feedback Events 1 | . . 1 . . . . . . . . . Corruption 1 | . . 1 . . . . . . . . . Feedback Blocked 3 | . . . . . . . 1 . 1 . 1 Robot Schematics Acquired . | . . . . . . . . . . . . Robots Built . | . . . . . . . . . . . . Authchips . | . . . . . . . . . . . . Time . | . . . . . . . . . . . . Total Robot Build Rating . | . . . . . . . . . . . . Part Schematics Acquired 9 | . . . . . . 2 2 . 2 . 3 Parts Built 3 | . . . . . . 1 . . . . 2 Authchips . | . . . . . . . . . . . . Time 410 | . . . . . . 73 . . . . 337 Total Part Build Rating 15 | . . . . . . 3 . . . . 12 Parts Repaired 7 | . . . . . 5 . . . 2 . . Time 247 | . . . . . 130 . . . 117 . . Parts Recycled . | . . . . . . . . . . . . Recycled Matter . | . . . . . . . . . . . . Retrieved Matter . | . . . . . . . . . . . . Retrieved Components 21 | . . . . . 10 . 1 . 2 3 5 Parts Scanalyzed 7 | . . . . . . 2 2 . . . 3 Part Schematics Acquired 7 | . . . . . . 2 2 . . . 3 Parts Damaged 1 | . . . . . . . . . . . 1 Bothacking | -11 -10 -10 -9 -9 -8 -7 -6 -6 -6 -6 -5 ------------ Run | Yrd Mat Min Mat Sto Mat Fac Fac Was Fac Ext Fac Used RIF Installer . | . . . . . . . . . . . . Robots Hacked . | . . . . . . . . . . . . Non-combat . | . . . . . . . . . . . . Combat . | . . . . . . . . . . . . Robot Hacks Applied . | . . . . . . . . . . . . Relay Couplers Released . | . . . . . . . . . . . . Fabnet Peak Effective % . | . . . . . . . . . . . . Robots Rewired 7 | . . . . . . . . . . 7 . Allies Hacked . | . . . . . . . . . . . . Hacks Repelled 1 | . . . . . . . . . . 1 . Allies | -11 -10 -10 -9 -9 -8 -7 -6 -6 -6 -6 -5 -------- Run | Yrd Mat Min Mat Sto Mat Fac Fac Was Fac Ext Fac Total Allies 12 | . . 3 . . . . . . . 9 . Largest Group 8 | . . 3 . . . . . . . 8 1 Highest-Rated Group 346 | . . 40 . . . . . . . 346 151 Highest-Rated Ally 159 | . . 16 . . . . . . . 159 151 Total Orders . | . . . . . . . . . . . . Ally Attacks 74 | . . 14 . . . . . . . 60 . Total Damage 1708 | . . 125 . . . . . . . 1583 . Kills 10 | . . . . . . . . . . 10 . Allies Corrupted . | . . . . . . . . . . . . Allies Melted . | . . . . . . . . . . . . Intel | -11 -10 -10 -9 -9 -8 -7 -6 -6 -6 -6 -5 ------- Run | Yrd Mat Min Mat Sto Mat Fac Fac Was Fac Ext Fac Robot Analysis Total 4 | . . . . . 2 . . . . . 2 Derelict Logs Recovered 2 | . . 2 . . . . . . . . . Drone Launches . | . . . . . . . . . . . . Drone Recoveries . | . . . . . . . . . . . . Exploration | -11 -10 -10 -9 -9 -8 -7 -6 -6 -6 -6 -5 ------------- Run | Yrd Mat Min Mat Sto Mat Fac Fac Was Fac Ext Fac Turns Passed 13204 | 168 1503 3630 616 2353 3106 281 350 59 357 287 494 Spaces Moved 6563 | 80 554 1191 163 610 1161 571 450 99 458 328 898 Core 219 | 1 1 . . . . . 71 77 . 5 64 Treads 3758 | 79 553 1191 163 610 1161 1 . . . . . Legs . | . . . . . . . . . . . . Wheels . | . . . . . . . . . . . . Hover 28 | . . . . . . . . . . . 28 Flight 2558 | . . . . . . 570 379 22 458 323 806 Fastest Speed 26 | 50 160 240 320 320 158 29 26 40 37 37 27 Average Speed 165 | 158 230 289 320 320 212 29 53 50 37 41 35 Slowest Speed 900 | 160 900 320 320 320 240 158 195 200 40 200 150 Overloaded Moves 138 | . . . . . . . . . . . 138 Propulsion Burnouts . | . . . . . . . . . . . . Robots Hopped 11 | . . . . . . . . . . 2 9 Cave-ins Triggered . | . . . . . . . . . . . . Exploration Rate (%) 44 | 6 83 99 12 75 81 15 18 68 11 40 30 Regions Visited 11 Branch Regions 3 Pre-discovered Areas 1 | . . . . 1 . . . . . . . Known Exits Taken 1 | . . . . . . . . . 1 . . Unknown Exits Taken 8 | 1 1 1 1 1 1 1 . . . 1 . Scrap Searched 2 | . . 2 . . . . . . . . . Spaces Dug 42 | . . . . 2 1 7 5 . 10 1 16 Terrain Destroyed 58 | . . 5 . 7 1 13 5 . 10 1 16 Melee 42 | . . . . 2 1 7 5 . 10 1 16 Projectile 10 | . . 5 . 5 . . . . . . . AOE 6 | . . . . . . 6 . . . . . Terrain Rammed . | . . . . . . . . . . . . Walls Destroyed . | . . . . . . . . . . . . Machines Disabled . | . . . . . . . . . . . . Actions | -11 -10 -10 -9 -9 -8 -7 -6 -6 -6 -6 -5 --------- Run | Yrd Mat Min Mat Sto Mat Fac Fac Was Fac Ext Fac Total 7965 | 100 658 1273 235 792 1554 661 509 106 609 451 1017 Wait 374 | . 2 8 . 8 145 16 3 3 118 54 17 Move 6531 | 79 553 1190 162 609 1160 570 450 98 457 323 880 Hop 11 | . . . . . . . . . . 2 9 Pick Up 143 | 5 20 10 25 17 28 11 6 2 5 3 11 Fast Attach 71 | 7 6 . . 3 8 5 7 2 5 2 26 Attach 48 | . 1 3 1 8 8 7 4 1 3 . 12 Detach 21 | . . . . 2 3 2 2 . . 1 11 Swap 62 | . 5 1 5 12 28 7 2 . 1 . 1 Drop 135 | . 6 6 23 16 38 18 4 . 4 4 16 Fire 408 | 9 65 55 19 110 135 14 . . . 1 . Melee 110 | . . . . 3 1 11 31 . 16 14 34 Ram . | . . . . . . . . . . . . Kick . | . . . . . . . . . . . . Crush 2 | . . . . 2 . . . . . . . Escape Stasis 26 | . . . . 2 . . . . . 24 . Rewire 23 | . . . . . . . . . . 23 . Trap . | . . . . . . . . . . . . Miscellaneous . | . . . . . . . . . . . . Route ------- -11/Scrapyard -10/Materials (discovered 4 exits: [*Mat x2] / *Min x2) -10/Mines (discovered 2 exits: [*Mat x2]) -9/Materials -9/Storage -8/Materials (discovered 3 exits: *Fac x3) -7/Factory (discovered 2 exits: *Fac x2) -6/Factory -6/Waste -6/Factory (discovered 5 exits: *Fac / Low x2 / *Ext x2) -6/Extension -5/Factory History --------- Turn | Location | Event 32 | -11/Scrapyard | Discovered new exit (range 15) 169 | -11/Scrapyard | Entered Materials 321 | -10/Materials | Build established: Mutant 546 | -10/Materials | Discovered new exit (range 10) 972 | -10/Materials | Discovered new exit (range 16) 1272 | -10/Materials | Discovered new exit (range 15) 1492 | -10/Materials | Discovered new exit (range 12) 1498 | -10/Materials | Build established: Scavenger-Mutant 1672 | -10/Materials | Entered Mines 1677 | -10/Mines | Learned Materials emergency access door positions 1677 | -10/Mines | Assisted by bots powering up and referring to "LRC-V3" 1684 | -10/Mines | Met a Derelict bent on vengeance 2120 | -10/Mines | Found a hidden stash of uninstalled traps 2271 | -10/Mines | Learned Materials garrison access intel 2414 | -10/Mines | Discovered new exit (range 13) 2465 | -10/Mines | Discovered new exit (range 16) 2821 | -10/Mines | Received a Rocket Launcher from a helpful Derelict 3147 | -10/Mines | Core integrity fell below 50% 3187 | -10/Mines | Lost 3 parts (2n1w) 5302 | -10/Mines | Entered Materials 5302 | -9/Materials | Evolved 2 slots: Utility x2 5730 | -9/Materials | Discovered new exit (range 6) 5918 | -9/Materials | Entered Storage 5958 | -9/Storage | Build established: Mutant 6878 | -9/Storage | Garrison activated, responded to threat 7116 | -9/Storage | Build established: Scavenger-Mutant 7274 | -9/Storage | Learned location of Armory (-4) 7564 | -9/Storage | Found Prototype Protection 7564 | -9/Storage | Identified Lgt. Regenerative Plating 8170 | -9/Storage | Discovered new exit (range 5) 8271 | -9/Storage | Entered Materials 8271 | -8/Materials | Evolved 2 slots: Propulsion x2 8272 | -8/Materials | Loaded intel: 1 garrison access location 8514 | -8/Materials | Lost 3 parts (3u) 9253 | -8/Materials | Repaired Lgt. Treads 9281 | -8/Materials | Repaired Lgt. Treads 9308 | -8/Materials | Repaired Lgt. Treads 9336 | -8/Materials | Repaired Lgt. Treads 9363 | -8/Materials | Repaired Lgt. Treads 9584 | -8/Materials | Discovered new exit (range 4) 10738 | -8/Materials | Discovered new exit (range 16) 10800 | -8/Materials | Build established: Mutant 11344 | -8/Materials | Discovered new exit (range 15) 11377 | -8/Materials | Entered Factory 11377 | -7/Factory | Evolved 2 slots: Utility x2 11582 | -7/Factory | Fabricated System Shield (x1) 11638 | -7/Factory | Discovered new exit (range 6) 11640 | -7/Factory | Discovered new exit (range 15) 11658 | -7/Factory | Entered another Factory area 11658 | -6/Factory | Evolved 2 slots: Propulsion x1, Utility x1 11679 | -6/Factory | Build established: Hacker-Sprinter 11817 | -6/Factory | Lost 7 parts (4n1u2w) 11930 | -6/Factory | Lost 3 parts (3n) 11990 | -6/Factory | Core integrity fell below 50% 12008 | -6/Factory | Sucked down chute 12008 | -6/Factory | Entered Waste 12022 | -6/Waste | Spotted C-40 Crusher 12034 | -6/Waste | Lost 3 parts (1p1u1w) 12034 | -6/Waste | Crushed by Compactor (1 part destroyed, 1 dropped) 12038 | -6/Waste | Spotted C-40 Crusher 12042 | -6/Waste | Spotted C-40 Crusher 12043 | -6/Waste | Spotted C-40 Crusher 12048 | -6/Waste | Crushed by Compactor (1 part destroyed, 1 dropped) 12052 | -6/Waste | Discovered new exit (range 15) 12052 | -6/Waste | Spotted C-40 Crusher 12053 | -6/Waste | Spotted C-40 Crusher 12067 | -6/Waste | Entered Factory 12117 | -6/Factory | Build established: Hacker-Mutant 12194 | -6/Factory | Repaired Broken Field Propulsion Array 12277 | -6/Factory | Repaired Dual-blade Saw? 12320 | -6/Factory | Identified exit to Lower Caves 12320 | -6/Factory | Identified exit to Extension 12345 | -6/Factory | Discovered new exit (range 16) 12424 | -6/Factory | Entered Extension 12444 | -6/Extension | Core integrity fell below 20% 12445 | -6/Extension | Rescued a captive Derelict 12564 | -6/Extension | Rescued A7 12655 | -6/Extension | Spotted B-75 Beast 12686 | -6/Extension | Spotted B-75 Beast 12702 | -6/Extension | Allies destroyed B-75 Beast 12706 | -6/Extension | Discovered new exit (range 3) 12711 | -6/Extension | Entered Factory 12711 | -5/Factory | Accompanied by 1 ally (A7) 12711 | -5/Factory | Evolved 2 slots: Power x1, Utility x1 12730 | -5/Factory | Lost 6 allies 12733 | -5/Factory | Lost 3 parts (1p2w) 12944 | -5/Factory | Lost 4 parts (2p2n) 12957 | -5/Factory | Found Prototype Processor 12957 | -5/Factory | Identified Exp. Targeting Computer 12986 | -5/Factory | Central database locked down 13003 | -5/Factory | Lost 4 parts (1n3u) 13016 | -5/Factory | Fabricated Cld. Nuclear Pulse Thruster? 13050 | -5/Factory | Core integrity fell below 50% 13127 | -5/Factory | Core integrity fell below 20% 13152 | -5/Factory | Fabricated Cld. Nuclear Pulse Thruster? 13205 | -5/Factory | Destroyed by P-70 Sage with Tesla Rifle Last Messages --------------- >>Build Building Cld. Nuclear Pulse Thruster... ETC: 84 13187_ ALERT: Unauthorized use of fabrication network. Dispatching investigation squad. 13188_ %WSF3QFA, EUTHHAWR5 13199_ Acquired Neutrino Core. 13203_ Connecting with Terminal... >>Trojan(Botnet) Trojan loaded successfully. Testing... Terminal linked with 1 system. Awaiting botnet instructions. >>Recall(Extermination) Establishing remote squad link... No tasked extermination squads found. >>Recall(Investigation) Establishing remote squad link... Recalled investigation squad H27YQ7I5WN. 13205_ Chainsword destroyed. Map ----- +----------------------------------------------------+ | # ? ?????????## ??## # # ! | | # """""????????## ??## # """ """ """ # | | # ????????## ??## + """ """ "Y" # """ | | # """"""??? ##### #### # """ """ " / """ | | + ?? #####+#### # # """ | | ^# " " ?????? # # # # """ | | # ?????????? # """"" # ###########/### | | * # ?????????? # """"" # # ! ### #####+# | | # ?????????? # """ # # # | | ############## + + # | | #############" """"" # # [# """ "" | | # |# """"" # # # """"" "" | | # # """ # # + """"" "" | | % # # # ######### | | # ] ########## ######### """ | | / ########## ?? """"" "" | | # """ """" ########## """"" "" | | / """" """" / | | # """" """" ########## | | # """" """" ########## | | +### """" """" ##????######+#/##########/######/# | | ## """" """" ##????# T p ## # | | ## ##????# """ #" "" """ # | | ########+#######????# """ g#""" """ # | | ######## # ????# """ ##"F """ # | | ##????## # ?????????# @ p ##""" # | | ##?????? # ?????????# """ ## "" # | | ? ##?????? ???????????# """ ## ==!# ! | | ? / ?????? ???????????# """ ## ==!" = | | ? ##?????? ???????????# !! ## =!!# ! | | ? ##?????? ???????????# !! #### ###### | | ??????????????????????+ ! #??###????# | | ??????????????????????# #?????????# | | ??????????????????????##############?????????##### | | ?????????????????????????????????????????????????? | | ?????????????????????????????????????????????????? | | ?????????????????????????????????????????????????? | | ?????????????????????????????????????????????????? | | ?????????????????????????????????????????????????? | | ?????????????????????????????????????????????????? | | ?????????????????????????????????????????????????? | | ?????????????????????????????????????????????????? | | ?????????????????????????????????????????????????? | | ?????????????????????????????????????????????????? | | ?????????????????????????????????????????????????? | | ?????????????????????????????????????????????????? | | ?????????????????????????????????????????????????? | | ?????????????????????????????????????????????????? | | ?????????????????????????????????????????????????? | | ?????????????????????????????????????????????????? | +----------------------------------------------------+ Best States ------------- Heat Dissipation 40 Energy Generation 29 Energy Capacity 365 Matter Stores 300 Matter Capacity 300 Sight Range 16 Terrain Scan Range 16 Terrain Scan Density 10 Additional Mass Support 9 Armor Coverage 300 Utility Shielding 66 Evasion (%) 64 Targeting Accuracy 12 Melee Accuracy 8 Recoil Reduction 4 Offensive Hacking 42 Defensive Hacking 40 Item Schematics ----------------- System Shield | -7/Factory | Scanalyzed Surge Thruster | -7/Factory | Scanalyzed System Restoration Module | -6/Factory | Scanalyzed Adv. Weight Redist. System | -6/Factory | Scanalyzed Tiamat Missile Launcher | -6/Factory | Hacked Cld. VTOL Module | -6/Factory | Hacked Cld. Nuclear Pulse Thruster | -5/Factory | Scanalyzed Adv. System Restoration Module | -5/Factory | Scanalyzed Energy Well | -5/Factory | Scanalyzed Robot Schematics ------------------ None Fabricated ------------ System Shield | x1 | -7/Factory Cld. Nuclear Pulse Thruster | x1 | -5/Factory Cld. Nuclear Pulse Thruster | x1 | -5/Factory Alien Tech Used ----------------- None Achievements -------------- Prison Break Challenges ------------ None Game ------ Seed SmallUtilityRailgun Manual? 0 Play Time 02:15:10 Cumulative 104.6 hours Start 2024.04.23 @ 20:00:32 End 2024.04.24 @ 00:35:18 Sessions 1 Manual Loads 0 Difficulty Rogue Special Mode None Game No. 121 Rogue 121 Adventurer 0 Explorer 0 Win Type - Total 0 Types 0/0/0/0/0/0/0/0/0 Lore% 28 Gallery% 54 Achievement% 40 Wizard Run 0 Options --------- Layout 1 ASCII 0 Keyboard 1 Movement Vi Keybinds 0 Fullscreen 1 Font 24/Smallcaps Map View 50x35 Zoom Use 0% Tactical HUD 1 Map Filters NONE Filters NONE Steam 1 RUN: 7d15cb43-e17a-4882-a459-2e8f906f7782